[Event "Turkish Women-ch Arzum 2022"]
[Site "Ayvalik"]
[Date "2022.03.09"]
[Round "7.20"]
[White "Olmez, Sude"]
[Black "Aydogan, Arya"]
[Result "0-1"]
[ECO "D37"]
[WhiteElo "1170"]
[BlackElo "1328"]
[Annotator "NA RC"]
[PlyCount "114"]
[EventDate "2022.03.04"]
[EventType "swiss"]
[EventCountry "TUR"]
[SourceTitle "playchess.com"]
[Source "ChessBase"]
[SourceQuality "1"]
[TimeControl "5400+30"]

1. d4 {[%emt 0:01:00]} d5 {[%emt 0:01:00]} 2. Nf3 {[%emt 0:00:30]} Nf6 {[%emt 0:00:30]} 3. c4 {[%emt 0:00:00]} e6 {[%emt 0:00:30]} 4. Nc3 {[%emt 0:02:00]} a6 {[%emt 0:03:30]} 5. a4 {[%emt 0:02:30]} b6 {[%emt 0:03:30]} 6. Bg5 {[%emt 0:05:30]} Be7 {[%emt 0:04:30]} 7. e3 {[%emt 0:00:30]} O-O {[%emt 0:00:30]} 8. Qc2 {[%emt 0:05:30]} Nbd7 {[%emt 0:05:30]} 9. Be2 {[%emt 0:07:30]} Bb7 {[%emt 0:07:30]} 10. cxd5 {[%emt 0:02:30]} exd5 {[%emt 0:01:30]} 11. Rd1 {[%emt 0:01:30]} Bd6 {[%emt 0:06:30]} 12. Bh4 {[%emt 0:06:30]} Re8 {[%emt 0:05:30]} 13. O-O {[%emt 0:04:30]} Nf8 {[%emt 0:08:30]} 14. Qb3 {[%emt 0:09:30]} N8d7 {[%emt 0:10:30]} 15. Rc1 {[%emt 0:04:30]} Qe7 {[%emt 0:02:30]} 16. Qc2 {[%emt 0:02:30]} Nf8 {[%emt 0:05:30]} 17. Bd3 {[%emt 0:04:30]} Ng6 {[%emt 0:02:30]} 18. Bg3 {[%emt 0:03:30]} c5 {[%emt 0:05:30]} 19. Bxg6 {[%emt 0:02:30]} hxg6 {[%emt 0:00:30]} 20. Bxd6 {[%emt 0:01:30]} Qxd6 {[%emt 0:00:30]} 21. h3 {[%emt 0:01:30]} Rac8 {[%emt 0:04:30]} 22. Qd1 {[%emt 0:03:30]} Nd7 {[%emt 0:03:41]} 23. Re1 {[%emt 0:04:30]} Bc6 {[%emt 0:03:32]} 24. Re2 {[%emt 0:03:30]} c4 {[%emt 0:01:49]} 25. b3 {[%emt 0:01:43]} b5 {[%emt 0:00:16]} 26. axb5 {[%emt 0:01:03]} axb5 {[%emt 0:00:15]} 27. Nb1 {[%emt 0:02:08]} Ra8 {[%emt 0:04:05]} 28. Rb2 {[%emt 0:07:12]} Reb8 {[%emt 0:01:30]} 29. b4 {[%emt 0:01:11]} Ra4 {[%emt 0:01:48]} 30. Qd2 {[%emt 0:00:23]} Rba8 {[%emt 0:00:00]} 31. Ne1 {[%emt 0:00:42]} Nf6 {[%emt 0:00:52]} 32. Nc2 {[%emt 0:01:21]} Ne4 {[%emt 0:01:05]} 33. Qe1 {[%emt 0:00:03]} Qe7 {[%emt 0:00:31]} 34. Nc3 {[%emt 0:01:06]} Nxc3 {[%emt 0:00:36]} 35. Qxc3 {[%emt 0:00:03]} Qa7 {[%emt 0:00:52]} 36. Rcb1 {[%emt 0:01:27]} Ra2 {[%emt 0:01:02]} 37. Kh1 {[%emt 0:01:39]} Kf8 {[%emt 0:01:10]} 38. Kg1 {[%emt 0:00:05]} Ke7 {[%emt 0:00:09]} 39. Kf1 {[%emt 0:00:36]} Kd7 {[%emt 0:00:35]} 40. Ke2 {[%emt 0:01:13]} Ra6 {[%emt 0:00:32]} 41. Kf1 {[%emt 0:00:54]} Ke7 {[%emt 0:01:04]} 42. Kg1 {[%emt 0:00:30]} Bd7 {[%emt 0:00:00]} 43. Rc1 {[%emt 0:01:11]} Bf5 {[%emt 0:00:06]} 44. Qd2 {[%emt 0:02:11]} Bxc2 {[%emt 0:02:03]} 45. Rbxc2 {[%emt 0:01:24]} Ra2 {[%emt 0:00:57]} 46. Kh2 {[%emt 0:00:58]} Qa4 {[%emt 0:00:40]} 47. g3 {[%emt 0:01:24]} Qb3 {[%emt 0:00:51]} 48. Kg2 {[%emt 0:01:25]} R8a4 {[%emt 0:01:01]} 49. Kf3 {[%emt 0:00:48]} Rxc2 {[%emt 0:00:21]} 50. Rxc2 {[%emt 0:00:14]} Qxb4 {[%emt 0:00:28]} 51. Qc1 {[%emt 0:00:00]} Ra3 {[%emt 0:00:41]} 52. Rb2 {[%emt 0:00:37]} Rb3 {[%emt 0:01:03]} 53. Ra2 {[%emt 0:00:23]} Rb1 {[%emt 0:01:19]} 54. Qc2 {[%emt 0:00:17]} Qb3 {[%emt 0:00:03]} 55. Qe2 {[%emt 0:01:22]} Qd1 {[%emt 0:00:15]} 56. h4 {[%emt 0:00:03]} Qh1+ {[%emt 0:00:58]} 57. Kg4 {[%emt 0:01:00]} Qe4+ {[%emt 0:00:09]} 0-1

[Event "Turkish Women-ch Arzum 2022"]
[Site "Ayvalik"]
[Date "2022.03.09"]
[Round "7.21"]
[White "Engin, Cagla"]
[Black "Dal, Nurseda"]
[Result "1-0"]
[ECO "C30"]
[WhiteElo "1436"]
[BlackElo "1116"]
[Annotator "NA"]
[PlyCount "73"]
[EventDate "2022.03.04"]
[EventType "swiss"]
[EventCountry "TUR"]
[SourceTitle "playchess.com"]
[Source "ChessBase"]
[SourceQuality "1"]
[TimeControl "5400+30"]

1. e4 {[%emt 0:01:00]} e5 {[%emt 0:01:00]} 2. Bc4 {[%emt 0:00:30]} Nf6 {[%emt 0:00:30]} 3. Nc3 {[%emt 0:00:30]} Bc5 {[%emt 0:00:30]} 4. d3 {[%emt 0:00:00]} h6 {[%emt 0:00:00]} 5. f4 {[%emt 0:01:00]} d6 {[%emt 0:06:00]} 6. Nf3 {[%emt 0:03:30]} Nc6 {[%emt 0:01:30]} 7. Na4 {[%emt 0:08:30]} exf4 {[%emt 0:04:30]} 8. Nxc5 {[%emt 0:02:30]} dxc5 {[%emt 0:00:30]} 9. Bxf4 {[%emt 0:01:30]} Be6 {[%emt 0:03:30]} 10. Bxe6 {[%emt 0:01:30]} fxe6 {[%emt 0:00:00]} 11. Qd2 {[%emt 0:01:30]} Qe7 {[%emt 0:03:00]} 12. Ne5 {[%emt 0:06:30]} Nxe5 {[%emt 0:00:30]} 13. Bxe5 {[%emt 0:00:30]} O-O-O {[%emt 0:00:30]} 14. Qc3 {[%emt 0:01:30]} Nxe4 {[%emt 0:10:30]} 15. dxe4 {[%emt 0:00:30]} Qh4+ {[%emt 0:00:30]} 16. Bg3 {[%emt 0:00:30]} Qxe4+ {[%emt 0:00:30]} 17. Kf1 {[%emt 0:00:30]} Rhf8+ {[%emt 0:00:30]} 18. Kg1 {[%emt 0:02:30]} Qe2 {[%emt 0:07:30]} 19. Re1 {[%emt 0:05:30]} Rd1 {[%emt 0:00:30]} 20. h3 {[%emt 0:11:30]} Rf1+ {[%emt 0:01:30]} 21. Kh2 {[%emt 0:00:30]} Rxh1+ {[%emt 0:05:30]} 22. Kxh1 {[%emt 0:02:30]} Rxe1+ {[%emt 0:04:30]} 23. Qxe1 {[%emt 0:01:30]} Qxe1+ {[%emt 0:00:30]} 24. Bxe1 {[%emt 0:00:30]} Kd7 {[%emt 0:00:00]} 25. Kg1 {[%emt 0:00:00]} c4 {[%emt 0:01:00]} 26. Bc3 {[%emt 0:00:00]} g6 {[%emt 0:00:30]} 27. Kf2 {[%emt 0:00:30]} Kd6 {[%emt 0:00:30]} 28. Ke3 {[%emt 0:00:30]} Kd5 {[%emt 0:00:30]} 29. Kf4 {[%emt 0:00:30]} b5 {[%emt 0:00:30]} 30. Bg7 {[%emt 0:00:30]} g5+ {[%emt 0:00:30]} 31. Kg4 {[%emt 0:01:30]} Ke4 {[%emt 0:00:30]} 32. Bxh6 {[%emt 0:00:30]} Ke3 {[%emt 0:01:30]} 33. Bxg5+ {[%emt 0:00:30]} Ke2 {[%emt 0:00:30]} 34. h4 {[%emt 0:00:00]} a5 {[%emt 0:00:30]} 35. h5 {[%emt 0:01:00]} b4 {[%emt 0:00:30]} 36. h6 {[%emt 0:00:30]} a4 {[%emt 0:00:00]} 37. h7 {[%emt 0:00:00]} 1-0

[Event "Turkish Women-ch Arzum 2022"]
[Site "Ayvalik"]
[Date "2022.03.09"]
[Round "7.22"]
[White "Sezer, Ipek"]
[Black "Turunz, Dilek"]
[Result "1/2-1/2"]
[ECO "D48"]
[WhiteElo "1329"]
[BlackElo "1443"]
[Annotator "NA"]
[PlyCount "75"]
[EventDate "2022.03.04"]
[EventType "swiss"]
[EventCountry "TUR"]
[SourceTitle "playchess.com"]
[Source "ChessBase"]
[SourceQuality "1"]
[TimeControl "5400+30"]

1. d4 {[%emt 0:01:00]} d5 {[%emt 0:02:00]} 2. c4 {[%emt 0:00:30]} c6 {[%emt 0:00:30]} 3. Nc3 {[%emt 0:00:00]} Nf6 {[%emt 0:00:30]} 4. Nf3 {[%emt 0:00:00]} e6 {[%emt 0:00:30]} 5. e3 {[%emt 0:00:30]} Nbd7 {[%emt 0:00:00]} 6. Bd3 {[%emt 0:00:00]} dxc4 {[%emt 0:00:00]} 7. Bxc4 {[%emt 0:01:00]} b5 {[%emt 0:00:30]} 8. Bd3 {[%emt 0:00:00]} a6 {[%emt 0:00:00]} 9. O-O {[%emt 0:00:00]} Bb7 {[%emt 0:00:00]} 10. e4 {[%emt 0:00:30]} b4 {[%emt 0:03:30]} 11. Na4 {[%emt 0:02:30]} Qa5 {[%emt 0:15:30]} 12. Bc2 {[%emt 0:11:30]} Be7 {[%emt 0:04:30]} 13. Re1 {[%emt 0:07:30]} Rd8 {[%emt 0:01:30]} 14. e5 {[%emt 0:04:30]} Nd5 {[%emt 0:02:30]} 15. Bg5 {[%emt 0:12:30]} c5 {[%emt 0:03:30]} 16. Bxe7 {[%emt 0:18:30]} Nxe7 {[%emt 0:00:30]} 17. Be4 {[%emt 0:08:30]} Bxe4 {[%emt 0:03:30]} 18. Rxe4 {[%emt 0:00:30]} cxd4 {[%emt 0:03:30]} 19. Rxd4 {[%emt 0:00:30]} Nc6 {[%emt 0:01:30]} 20. Rd6 {[%emt 0:02:30]} Ndxe5 {[%emt 0:04:30]} 21. Nxe5 {[%emt 0:05:30]} Qxe5 {[%emt 0:03:30]} 22. Rxd8+ {[%emt 0:00:30]} Nxd8 {[%emt 0:00:30]} 23. Nb6 {[%emt 0:00:30]} Qc7 {[%emt 0:11:30]} 24. Qa4+ {[%emt 0:00:30]} Qc6 {[%emt 0:05:30]} 25. Qxc6+ {[%emt 0:05:10]} Nxc6 {[%emt 0:00:30]} 26. Rc1 {[%emt 0:00:37]} Nd8 {[%emt 0:03:30]} 27. Rc4 {[%emt 0:01:01]} a5 {[%emt 0:00:30]} 28. Rg4 {[%emt 0:01:20]} Rg8 {[%emt 0:09:30]} 29. Rd4 {[%emt 0:04:05]} Ke7 {[%emt 0:02:48]} 30. Rd7+ {[%emt 0:02:10]} Kf6 {[%emt 0:00:01]} 31. Nc4 {[%emt 0:00:33]} Nc6 {[%emt 0:01:21]} 32. Rc7 {[%emt 0:03:08]} Rd8 {[%emt 0:00:30]} 33. g3 {[%emt 0:00:00]} Rd1+ {[%emt 0:04:46]} 34. Kg2 {[%emt 0:00:00]} Ne7 {[%emt 0:00:26]} 35. Ra7 {[%emt 0:02:39]} Rc1 {[%emt 0:01:35]} 36. b3 {[%emt 0:00:15]} Rc2 {[%emt 0:01:35]} 37. Rxa5 {[%emt 0:00:29]} Nd5 {[%emt 0:00:19]} 38. a3 {[%emt 0:03:29]} 1/2-1/2

[Event "Turkish Women-ch Arzum 2022"]
[Site "Ayvalik"]
[Date "2022.03.09"]
[Round "7.23"]
[White "Yalcin, Fahriye Zeynep"]
[Black "Buyuk, Elvin Esma"]
[Result "1-0"]
[ECO "B01"]
[WhiteElo "1260"]
[BlackElo "1326"]
[Annotator "NA RC"]
[PlyCount "125"]
[EventDate "2022.03.04"]
[EventType "swiss"]
[EventCountry "TUR"]
[SourceTitle "playchess.com"]
[Source "ChessBase"]
[SourceQuality "1"]
[TimeControl "5400+30"]

1. e4 {[%emt 0:03:00]} d5 {[%emt 0:01:00]} 2. exd5 {[%emt 0:00:30]} Qxd5 {[%emt 0:00:00]} 3. Nc3 {[%emt 0:00:30]} Qa5 {[%emt 0:00:00]} 4. d4 {[%emt 0:00:30]} Nf6 {[%emt 0:00:00]} 5. Nf3 {[%emt 0:00:30]} Bf5 {[%emt 0:00:00]} 6. Be2 {[%emt 0:01:30]} e6 {[%emt 0:00:30]} 7. a3 {[%emt 0:04:30]} c6 {[%emt 0:00:30]} 8. Bd2 {[%emt 0:02:30]} Nbd7 {[%emt 0:01:30]} 9. Qc1 {[%emt 0:05:30]} Be7 {[%emt 0:01:30]} 10. h3 {[%emt 0:01:30]} O-O {[%emt 0:04:30]} 11. Ne4 {[%emt 0:11:30]} Qd8 {[%emt 0:00:30]} 12. Ng3 {[%emt 0:00:30]} Be4 {[%emt 0:07:30]} 13. Bf4 {[%emt 0:04:30]} c5 {[%emt 0:05:30]} 14. Nxe4 {[%emt 0:03:30]} Nxe4 {[%emt 0:00:30]} 15. Bd3 {[%emt 0:00:00]} Nef6 {[%emt 0:00:30]} 16. dxc5 {[%emt 0:20:00]} Nxc5 {[%emt 0:01:30]} 17. Be2 {[%emt 0:02:30]} Rc8 {[%emt 0:01:30]} 18. Qd1 {[%emt 0:00:30]} Nd5 {[%emt 0:01:30]} 19. Bh2 {[%emt 0:01:30]} Qb6 {[%emt 0:04:30]} 20. c4 {[%emt 0:04:30]} Nf6 {[%emt 0:04:30]} 21. b4 {[%emt 0:01:30]} Rfd8 {[%emt 0:03:30]} 22. Qb1 {[%emt 0:01:30]} Nce4 {[%emt 0:00:30]} 23. c5 {[%emt 0:00:30]} Qc6 {[%emt 0:02:30]} 24. O-O {[%emt 0:04:30]} Nc3 {[%emt 0:10:30]} 25. Qc2 {[%emt 0:01:30]} Nxe2+ {[%emt 0:01:30]} 26. Qxe2 {[%emt 0:00:00]} b6 {[%emt 0:00:00]} 27. Ne5 {[%emt 0:01:00]} Qe4 {[%emt 0:01:00]} 28. Qa6 {[%emt 0:04:30]} bxc5 {[%emt 0:08:30]} 29. Qxa7 {[%emt 0:00:33]} Nd5 {[%emt 0:04:30]} 30. Rfe1 {[%emt 0:02:02]} Qf5 {[%emt 0:02:30]} 31. b5 {[%emt 0:01:39]} Bd6 {[%emt 0:07:30]} 32. Nc6 {[%emt 0:02:18]} Bxh2+ {[%emt 0:00:30]} 33. Kxh2 {[%emt 0:00:21]} Rc7 {[%emt 0:09:32]} 34. Qxc5 {[%emt 0:00:49]} Rdc8 {[%emt 0:00:11]} 35. a4 {[%emt 0:00:55]} Qf6 {[%emt 0:01:29]} 36. a5 {[%emt 0:00:38]} Nf4 {[%emt 0:01:00]} 37. Qe5 {[%emt 0:02:39]} Qh4 {[%emt 0:02:24]} 38. Qd4 {[%emt 0:02:50]} g5 {[%emt 0:05:06]} 39. a6 {[%emt 0:01:39]} Qh6 {[%emt 0:01:01]} 40. a7 {[%emt 0:01:35]} Ra8 {[%emt 0:00:35]} 41. b6 {[%emt 0:01:23]} Rxc6 {[%emt 0:03:00]} 42. b7 {[%emt 0:00:44]} Qf8 {[%emt 0:00:02]} 43. bxa8=Q {[%emt 0:00:25]} Qxa8 {[%emt 0:00:03]} 44. Qb4 {[%emt 0:00:32]} Rb6 {[%emt 0:02:28]} 45. Qe4 {[%emt 0:01:03]} Nd5 {[%emt 0:00:11]} 46. Rec1 {[%emt 0:01:00]} Kg7 {[%emt 0:03:36]} 47. Rc8 {[%emt 0:02:32]} Qxc8 {[%emt 0:00:55]} 48. a8=Q {[%emt 0:00:08]} Qc7+ {[%emt 0:00:19]} 49. g3 {[%emt 0:00:19]} Nf6 {[%emt 0:00:30]} 50. Qe3 {[%emt 0:00:27]} h6 {[%emt 0:00:51]} 51. Rc1 {[%emt 0:00:17]} Qd6 {[%emt 0:00:21]} 52. Qaa3 {[%emt 0:00:36]} Qb8 {[%emt 0:00:51]} 53. Qac5 {[%emt 0:00:55]} Rb2 {[%emt 0:01:00]} 54. Qcc3 {[%emt 0:02:24]} e5 {[%emt 0:00:37]} 55. Qexe5 {[%emt 0:01:24]} Rxf2+ {[%emt 0:00:30]} 56. Kg1 {[%emt 0:00:00]} Qb6 {[%emt 0:00:41]} 57. Qee3 {[%emt 0:00:22]} Qxe3 {[%emt 0:00:44]} 58. Qxe3 {[%emt 0:00:04]} Rf5 {[%emt 0:00:02]} 59. Rc6 {[%emt 0:01:17]} Nd5 {[%emt 0:00:16]} 60. Qd4+ {[%emt 0:00:10]} f6 {[%emt 0:00:07]} 61. Qa7+ {[%emt 0:00:22]} Kg6 {[%emt 0:00:05]} 62. Qa8 {[%emt 0:00:39]} Re5 {[%emt 0:00:33]} 63. Qg8+ {[%emt 0:00:33]} 1-0

[Event "Turkish Women-ch Arzum 2022"]
[Site "Ayvalik"]
[Date "2022.03.09"]
[Round "7.25"]
[White "Sahin, Cagla Yudum"]
[Black "Gonultas, Bakriya Anastasiya"]
[Result "1-0"]
[ECO "B23"]
[WhiteElo "1162"]
[BlackElo "1232"]
[Annotator "NA"]
[PlyCount "85"]
[EventDate "2022.03.04"]
[EventType "swiss"]
[EventCountry "TUR"]
[SourceTitle "playchess.com"]
[Source "ChessBase"]
[SourceQuality "1"]
[TimeControl "5400+30"]

1. e4 {[%emt 0:01:00]} c5 {[%emt 0:01:00]} 2. Nc3 {[%emt 0:00:30]} Nc6 {[%emt 0:00:30]} 3. Bb5 {[%emt 0:00:30]} Nd4 {[%emt 0:00:30]} 4. Nf3 {[%emt 0:00:00]} a6 {[%emt 0:00:30]} 5. Bd3 {[%emt 0:00:00]} g6 {[%emt 0:00:30]} 6. Nxd4 {[%emt 0:00:30]} cxd4 {[%emt 0:00:00]} 7. Ne2 {[%emt 0:00:30]} Bg7 {[%emt 0:00:00]} 8. c3 {[%emt 0:00:00]} dxc3 {[%emt 0:01:30]} 9. dxc3 {[%emt 0:00:00]} e5 {[%emt 0:00:30]} 10. O-O {[%emt 0:00:30]} Ne7 {[%emt 0:00:30]} 11. Be3 {[%emt 0:01:30]} O-O {[%emt 0:00:00]} 12. Bc4 {[%emt 0:01:30]} b5 {[%emt 0:01:00]} 13. Bb3 {[%emt 0:00:30]} Bb7 {[%emt 0:00:00]} 14. f3 {[%emt 0:00:30]} Rc8 {[%emt 0:03:00]} 15. Qd6 {[%emt 0:01:30]} Rc6 {[%emt 0:03:30]} 16. Qd2 {[%emt 0:00:30]} Re8 {[%emt 0:09:30]} 17. Rad1 {[%emt 0:00:30]} d6 {[%emt 0:01:30]} 18. a4 {[%emt 0:03:30]} Kh8 {[%emt 0:02:30]} 19. Bxf7 {[%emt 0:00:30]} Rf8 {[%emt 0:00:30]} 20. Bb3 {[%emt 0:00:30]} d5 {[%emt 0:09:30]} 21. exd5 {[%emt 0:01:30]} Nxd5 {[%emt 0:03:30]} 22. Qxd5 {[%emt 0:00:30]} Qf6 {[%emt 0:01:30]} 23. Qd2 {[%emt 0:01:30]} Rc7 {[%emt 0:01:30]} 24. Qd6 {[%emt 0:01:30]} Rc6 {[%emt 0:05:30]} 25. Qxf6 {[%emt 0:00:30]} Rcxf6 {[%emt 0:00:30]} 26. Rd7 {[%emt 0:00:30]} Bc6 {[%emt 0:00:30]} 27. Rd2 {[%emt 0:02:30]} e4 {[%emt 0:06:30]} 28. f4 {[%emt 0:04:30]} g5 {[%emt 0:01:30]} 29. g3 {[%emt 0:02:30]} gxf4 {[%emt 0:05:30]} 30. Nxf4 {[%emt 0:01:30]} Be8 {[%emt 0:06:30]} 31. Bc5 {[%emt 0:00:30]} e3 {[%emt 0:05:30]} 32. Bxe3 {[%emt 0:02:30]} Rf5 {[%emt 0:00:30]} 33. Rfd1 {[%emt 0:01:30]} h5 {[%emt 0:04:30]} 34. Ne6 {[%emt 0:01:30]} Bf7 {[%emt 0:01:30]} 35. Nxg7 {[%emt 0:06:30]} Bxb3 {[%emt 0:02:30]} 36. Nxf5 {[%emt 0:00:30]} Rxf5 {[%emt 0:00:30]} 37. Rd8+ {[%emt 0:00:30]} Kg7 {[%emt 0:01:30]} 38. R1d7+ {[%emt 0:00:00]} Kg6 {[%emt 0:00:30]} 39. Bd4 {[%emt 0:00:00]} Bf7 {[%emt 0:02:30]} 40. h4 {[%emt 0:01:30]} Rf3 {[%emt 0:03:05]} 41. Rd6+ {[%emt 0:00:30]} Kf5 {[%emt 0:00:26]} 42. Rf6+ {[%emt 0:00:30]} Kg4 {[%emt 0:00:38]} 43. Rxf3 {[%emt 0:00:00]} 1-0

[Event "Turkish Women-ch Arzum 2022"]
[Site "Ayvalik"]
[Date "2022.03.09"]
[Round "7.26"]
[White "Gur, Tuba"]
[Black "Oztatar, Meleknaz"]
[Result "1/2-1/2"]
[ECO "E90"]
[WhiteElo "1750"]
[BlackElo "1063"]
[Annotator "NA"]
[PlyCount "73"]
[EventDate "2022.03.04"]
[EventType "swiss"]
[EventCountry "TUR"]
[SourceTitle "playchess.com"]
[Source "ChessBase"]
[SourceQuality "1"]
[TimeControl "5400+30"]

1. d4 {[%emt 0:01:00]} Nf6 {[%emt 0:01:00]} 2. Nf3 {[%emt 0:00:30]} g6 {[%emt 0:00:30]} 3. c4 {[%emt 0:00:30]} Bg7 {[%emt 0:00:30]} 4. Nc3 {[%emt 0:00:30]} O-O {[%emt 0:00:30]} 5. e4 {[%emt 0:00:00]} c5 {[%emt 0:00:00]} 6. d5 {[%emt 0:00:00]} d6 {[%emt 0:00:00]} 7. h3 {[%emt 0:00:00]} e5 {[%emt 0:01:30]} 8. a3 {[%emt 0:00:00]} a6 {[%emt 0:02:30]} 9. Rb1 {[%emt 0:00:30]} Nbd7 {[%emt 0:02:30]} 10. b4 {[%emt 0:00:30]} Nh5 {[%emt 0:05:30]} 11. Bg5 {[%emt 0:04:30]} Qe8 {[%emt 0:05:30]} 12. Na4 {[%emt 0:00:30]} f6 {[%emt 0:04:30]} 13. Be3 {[%emt 0:00:30]} b6 {[%emt 0:02:30]} 14. Qc2 {[%emt 0:08:30]} Qd8 {[%emt 0:01:30]} 15. Qd2 {[%emt 0:08:30]} f5 {[%emt 0:09:30]} 16. Bh6 {[%emt 0:11:30]} fxe4 {[%emt 0:02:30]} 17. Bxg7 {[%emt 0:01:30]} Nxg7 {[%emt 0:01:30]} 18. Ng5 {[%emt 0:01:30]} Nf6 {[%emt 0:02:30]} 19. Nc3 {[%emt 0:02:30]} e3 {[%emt 0:03:30]} 20. fxe3 {[%emt 0:02:30]} Nf5 {[%emt 0:07:30]} 21. Ne6 {[%emt 0:11:30]} Bxe6 {[%emt 0:00:30]} 22. dxe6 {[%emt 0:00:00]} Ng3 {[%emt 0:06:30]} 23. Rg1 {[%emt 0:00:00]} Qe7 24. Nd5 {[%emt 0:02:30]} Nxd5 {[%emt 0:11:00]} 25. Qxd5 {[%emt 0:00:00]} Rae8 {[%emt 0:01:30]} 26. bxc5 {[%emt 0:01:00]} bxc5 {[%emt 0:01:30]} 27. Rb6 {[%emt 0:00:30]} Qg5 {[%emt 0:04:30]} 28. e7+ {[%emt 0:00:30]} Rf7 {[%emt 0:00:30]} 29. Kd2 {[%emt 0:01:30]} Kg7 {[%emt 0:01:30]} 30. Be2 {[%emt 0:07:30]} Rf2 {[%emt 0:00:30]} 31. Re1 {[%emt 0:00:30]} Qh5 {[%emt 0:00:30]} 32. Qd3 {[%emt 0:14:30]} e4 {[%emt 0:00:30]} 33. Qxd6 {[%emt 0:01:43]} Rxe2+ {[%emt 0:00:30]} 34. Kc3 {[%emt 0:00:17]} Rxe1 {[%emt 0:01:30]} 35. Qf6+ {[%emt 0:00:30]} Kg8 {[%emt 0:01:30]} 36. Qe6+ {[%emt 0:00:00]} Kg7 {[%emt 0:00:30]} 37. Qf6+ {[%emt 0:00:00]} 1/2-1/2

[Event "Turkish Women-ch Arzum 2022"]
[Site "Ayvalik"]
[Date "2022.03.09"]
[Round "7.27"]
[White "Alev, Gonulden Seda"]
[Black "Engel, Ecrin Tuana"]
[Result "1-0"]
[ECO "B40"]
[WhiteElo "1561"]
[BlackElo "1250"]
[Annotator "NA"]
[PlyCount "77"]
[EventDate "2022.03.04"]
[EventType "swiss"]
[EventCountry "TUR"]
[SourceTitle "playchess.com"]
[Source "ChessBase"]
[SourceQuality "1"]
[TimeControl "5400+30"]

1. e4 {[%emt 0:01:00]} c5 {[%emt 0:01:00]} 2. Nf3 {[%emt 0:00:30]} e6 {[%emt 0:00:00]} 3. c4 {[%emt 0:01:30]} Nc6 {[%emt 0:02:00]} 4. d4 {[%emt 0:03:30]} cxd4 {[%emt 0:00:30]} 5. Nxd4 {[%emt 0:00:30]} Nge7 {[%emt 0:09:30]} 6. Nc3 {[%emt 0:08:30]} Nxd4 {[%emt 0:07:30]} 7. Qxd4 {[%emt 0:02:30]} Nc6 {[%emt 0:00:30]} 8. Qd1 {[%emt 0:00:30]} Bb4 {[%emt 0:01:30]} 9. Bd2 {[%emt 0:00:30]} O-O {[%emt 0:01:30]} 10. a3 {[%emt 0:01:30]} Be7 {[%emt 0:00:30]} 11. Be3 {[%emt 0:01:30]} b6 {[%emt 0:06:30]} 12. Be2 {[%emt 0:03:30]} Bb7 {[%emt 0:01:30]} 13. O-O {[%emt 0:00:00]} Bf6 {[%emt 0:01:30]} 14. Rc1 {[%emt 0:05:00]} Rc8 {[%emt 0:11:30]} 15. b4 {[%emt 0:13:30]} Bxc3 {[%emt 0:09:30]} 16. Rxc3 {[%emt 0:00:30]} Ne7 {[%emt 0:00:00]} 17. Qc2 {[%emt 0:02:30]} d5 {[%emt 0:11:00]} 18. exd5 {[%emt 0:05:30]} exd5 {[%emt 0:00:00]} 19. Rd1 {[%emt 0:00:30]} Qc7 {[%emt 0:03:00]} 20. Bg4 {[%emt 0:04:30]} f5 {[%emt 0:02:30]} 21. Be2 {[%emt 0:03:30]} dxc4 {[%emt 0:01:30]} 22. Rxc4 {[%emt 0:01:30]} Qb8 {[%emt 0:00:30]} 23. Rd7 {[%emt 0:07:30]} Ng6 {[%emt 0:09:22]} 24. Bd4 {[%emt 0:03:30]} Rf7 {[%emt 0:08:43]} 25. Rxf7 {[%emt 0:02:30]} Kxf7 {[%emt 0:00:21]} 26. Qxf5+ {[%emt 0:00:30]} Kg8 {[%emt 0:00:08]} 27. Qd7 {[%emt 0:01:30]} Ne5 {[%emt 0:00:29]} 28. Bxe5 {[%emt 0:02:30]} Qxe5 {[%emt 0:00:38]} 29. Rxc8+ {[%emt 0:00:30]} Bxc8 {[%emt 0:00:08]} 30. Qxc8+ {[%emt 0:00:30]} Kf7 {[%emt 0:00:00]} 31. Qd7+ {[%emt 0:01:30]} Kf8 {[%emt 0:00:59]} 32. Qd3 {[%emt 0:05:28]} g6 {[%emt 0:01:09]} 33. g3 {[%emt 0:00:22]} Qb2 {[%emt 0:01:23]} 34. Bf3 {[%emt 0:00:41]} Qc1+ {[%emt 0:01:10]} 35. Kg2 {[%emt 0:00:07]} Qc7 {[%emt 0:00:00]} 36. Qd5 {[%emt 0:00:55]} a5 {[%emt 0:01:01]} 37. b5 {[%emt 0:01:48]} Ke7 {[%emt 0:00:37]} 38. a4 {[%emt 0:02:17]} h5 {[%emt 0:01:38]} 39. Be4 {[%emt 0:01:18]} 1-0

[Event "Turkish Women-ch Arzum 2022"]
[Site "Ayvalik"]
[Date "2022.03.09"]
[Round "7.28"]
[White "Mullakutukcu, Ela"]
[Black "Akar, Nilay"]
[Result "0-1"]
[ECO "D02"]
[WhiteElo "1154"]
[BlackElo "1516"]
[Annotator "NA"]
[PlyCount "66"]
[EventDate "2022.03.04"]
[EventType "swiss"]
[EventCountry "TUR"]
[SourceTitle "playchess.com"]
[Source "ChessBase"]
[SourceQuality "1"]
[TimeControl "5400+30"]

1. d4 {[%emt 0:01:00]} Nf6 {[%emt 0:07:00]} 2. Bf4 {[%emt 0:00:30]} d5 {[%emt 0:00:30]} 3. e3 {[%emt 0:00:30]} e6 {[%emt 0:00:00]} 4. Nd2 {[%emt 0:00:00]} c5 {[%emt 0:00:00]} 5. c3 {[%emt 0:00:00]} Bd6 {[%emt 0:00:30]} 6. Bg3 {[%emt 0:00:30]} Qc7 {[%emt 0:01:30]} 7. Ngf3 {[%emt 0:01:30]} Nbd7 {[%emt 0:00:00]} 8. Bd3 {[%emt 0:02:30]} O-O {[%emt 0:01:00]} 9. Bh4 {[%emt 0:05:30]} e5 {[%emt 0:00:30]} 10. dxe5 {[%emt 0:00:30]} Nxe5 {[%emt 0:01:30]} 11. Nxe5 {[%emt 0:07:30]} Bxe5 {[%emt 0:00:00]} 12. Nf3 {[%emt 0:07:30]} Re8 {[%emt 0:09:00]} 13. Qc2 {[%emt 0:04:30]} h6 {[%emt 0:05:30]} 14. O-O-O {[%emt 0:01:30]} c4 {[%emt 0:04:30]} 15. Be2 {[%emt 0:01:30]} Be6 {[%emt 0:14:30]} 16. h3 {[%emt 0:02:30]} Ne4 {[%emt 0:02:30]} 17. Nxe5 {[%emt 0:01:30]} Qxe5 {[%emt 0:00:30]} 18. f4 {[%emt 0:04:30]} Qc7 {[%emt 0:01:30]} 19. g4 {[%emt 0:01:30]} Qa5 {[%emt 0:00:30]} 20. Kb1 {[%emt 0:01:30]} Bd7 {[%emt 0:01:30]} 21. Rdf1 {[%emt 0:04:30]} Ba4 {[%emt 0:00:30]} 22. Qc1 {[%emt 0:00:30]} Re6 {[%emt 0:01:30]} 23. Bf3 {[%emt 0:01:30]} Nc5 {[%emt 0:01:30]} 24. Qd2 {[%emt 0:02:30]} Rb6 {[%emt 0:03:30]} 25. Qd4 {[%emt 0:05:30]} Bc6 {[%emt 0:06:30]} 26. Bxd5 {[%emt 0:03:30]} Bxd5 {[%emt 0:01:30]} 27. Qxd5 {[%emt 0:00:30]} Rxb2+ {[%emt 0:00:30]} 28. Kxb2 {[%emt 0:01:30]} Na4+ {[%emt 0:00:30]} 29. Kc1 {[%emt 0:00:30]} Qxd5 {[%emt 0:00:30]} 30. Rd1 {[%emt 0:00:30]} Qe4 {[%emt 0:00:30]} 31. Rhe1 {[%emt 0:00:00]} Nxc3 {[%emt 0:01:30]} 32. Rd4 {[%emt 0:00:00]} Qb1+ {[%emt 0:01:30]} 33. Kd2 {[%emt 0:00:30]} Qb2# {[%emt 0:01:30]} 0-1